Cogmind - Beta 15 @@@ ROGUE MODE // 2025.08.01 @ 21:51:03 Player: beanbun Result: Destroyed by RU-59U(R) with Subdweller Laser Performance ------------- Evolutions (0) 0 Regions Visited (3) 600 Robots Destroyed (20) 100 Value Destroyed (480) 480 Prototype IDs (0) 0 Alien Tech Used (0) 0 Bonus (0) 0 TOTAL SCORE: 1180 Bonus ------- None Cogmind --------- Core Integrity 0/250 Matter 152/300 Energy 107/125 System Corruption 0% Temperature Cool (12) Movement Core (200) Ox3 Location -10/Subcaves Parts ------- > --- POWER (1) -------- Light Ion Engine > --- PROPULSION (2) --- (None) > --- UTILITY (2) ------ Targeting Computer Particle Charger > --- WEAPON (2) ------- Ion Cannon > --- INVENTORY (5) ---- Improved Heat Sink Compact Matter Pod (0) Recoil Stabilizer Improved Trap Extractor (0/6) Shock Bomb Launcher Peak State ------------ > --- POWER ------------ Light Ion Engine > --- PROPULSION ------- Light Treads Flight Unit > --- UTILITY ---------- Targeting Computer Particle Charger > --- WEAPON ----------- Ion Cannon Light Assault Rifle > --- INVENTORY -------- Compact Matter Pod Recoil Stabilizer Improved Trap Extractor Shock Bomb Launcher [Rating: 12] Favorites ----------- Power Light Ion Engine Engine Light Ion Engine Propulsion Aluminum Leg Treads Light Treads Leg Aluminum Leg Flight Unit Flight Unit Utility Light Armor Plating Device Particle Charger Processor Targeting Computer Protection Light Armor Plating Weapon Assault Rifle Energy Cannon Beam Cannon Ballistic Gun Assault Rifle Launcher Grenade Launcher Special Weapon Mining Laser Build | -11 -10 -10 -10 ------- Run | Yrd Mat Min Sub Slots Evolved . | . . . . Power . | . . . . Propulsion . | . . . . Utility . | . . . . Weapon . | . . . . Parts Attached 22 | 5 4 13 . Power 4 | 1 1 2 . Engine 4 | 1 1 2 . Core . | . . . . Reactor . | . . . . Propulsion 5 | 2 . 3 . Treads 1 | . . 1 . Leg 2 | 2 . . . Wheel . | . . . . Hover . | . . . . Flight 2 | . . 2 . Utility 4 | . 1 3 . Device 1 | . . 1 . Storage . | . . . . Processor 1 | . . 1 . Hackware . | . . . . Protection 2 | . 1 1 . Artifact . | . . . . Weapon 9 | 2 2 5 . Energy Gun . | . . . . Energy Cannon 3 | . . 3 . Ballistic Gun 4 | 2 . 2 . Ballistic Cannon . | . . . . Launcher 1 | . 1 . . Special Weapon 1 | . 1 . . Impact Weapon . | . . . . Slashing Weapon . | . . . . Piercing Weapon . | . . . . Special Melee Weapon . | . . . . Unidentified Prototypes . | . . . . Parts Lost 7 | . 1 4 2 Power 1 | . . 1 . Propulsion 2 | . . 1 1 Utility 1 | . . 1 . Weapon 3 | . 1 1 1 Highest Loss Streak 2 | . 1 2 2 To Critical Strikes . | . . . . Average Backups 2 | 2 3 1 5 Power . | . . . . Propulsion 1 | 1 2 . . Utility . | . . . 4 Weapon . | . 1 . 1 Tool/Special . | . . . . Unused Backups 17 | . 2 10 5 Power 1 | . . 1 . Propulsion 5 | . 2 3 . Utility 7 | . . 3 4 Weapon 4 | . . 3 1 Tool/Special . | . . . . Average Slot Usage (%) 78 | . 79 76 84 Engine 10 | . 14 7 14 Treads 4 | . . 7 . Leg 12 | . 28 7 . Flight 5 | . . 6 13 Device 2 | . . 1 14 Processor 6 | . . 9 14 Protection 7 | . 8 8 . Energy Cannon 10 | . . 14 14 Ballistic Gun 12 | . 19 8 14 Launcher 1 | . 6 . . Special Weapon 3 | . 1 4 . Peak Build Rating 12 | 5 6 12 11 Average Rating 6 | 3 5 5 10 On Entrance 5 | . 5 6 11 Naked Turns . | . . . . Heaviest Build 13 | 7 13 13 13 Greatest Support 20 | 20 20 20 3 Greatest Overweight (x) 4 | . . 4 4 Average Overweight (x) . | . . . 4 Largest Inventory Capacity 5 | 5 5 5 5 Average Capacity 5 | 5 5 5 5 Most Carried 5 | 5 5 5 5 Average Carried 2 | 2 3 1 5 Final Capacity 5 | 5 5 5 5 Final Carried 5 | 5 4 5 5 Class Distribution -------------------- 89% | Mutant 10% | Scavenger-Mutant Dominant Class ---------------- Mutant | -10/Materials Mutant | -10/Mines Mutant | -10/Subcaves Resources | -11 -10 -10 -10 ----------- Run | Yrd Mat Min Sub Matter Collected 548 | 274 89 134 51 Remotely . | . . . . Salvage Created 504 | 44 184 181 95 Parts 34 | 2 12 15 5 Haulers Intercepted . | . . . . Recyclers Shooed 1 | . . 1 . Parts Field Recycled . | . . . . Retrieved Matter . | . . . . Parts Self-Destructed 1 | . . . 1 Prevented . | . . . . Kills | -11 -10 -10 -10 ------- Run | Yrd Mat Min Sub Combat Hostiles Destroyed 19 | 1 9 7 2 Guns 10 | 1 5 4 . Cannons 5 | . . 3 2 AOE 4 | . 4 . . Classes Destroyed 5 | 1 2 1 1 Watcher 1 | . 1 . . Swarmer 11 | . 6 5 . Grunt 4 | 1 3 . . Sentry 3 | . . 2 1 Subdweller 1 | . . . 1 Best Kill Streak 5 | 1 5 3 1 Combat Bots Only 5 | 1 5 3 1 Max Kills in Single Turn 2 | 1 2 1 1 Gunslinging . | . . . . Exploded 2 | . 2 . . Melee . | . . . . Uniques/NPCs Destroyed . | . . . . Combat | -11 -10 -10 -10 -------- Run | Yrd Mat Min Sub Hostile Shots Fired 147 | 5 53 78 11 Missed 45 | 3 14 25 3 Hits 102 | 2 39 53 8 Projectile 102 | 2 39 53 8 Critical Strikes 1 | . . 1 . Damage Taken 1159 | 22 413 553 171 Core 253 | . 68 125 60 Absorbed by Shields . | . . . . Core Remaining (%) 100 | 100 . . . Volleys Fired 80 | 4 32 40 4 Largest 2 | 2 2 2 2 Hottest 120 | 40 120 120 80 Shots Fired 107 | 8 43 49 7 Gun 78 | 8 36 31 3 Cannon 22 | . . 18 4 Launcher 6 | . 6 . . Special 1 | . 1 . . Kinetic 78 | 8 36 31 3 Thermal 23 | . 1 18 4 Explosive 6 | . 6 . . Electromagnetic . | . . . . Robot Hit Streak 7 | 3 5 7 5 Robot Miss Streak 5 | 1 3 5 2 Penetration Max . | . . . . Secondary Targets . | . . . . Shots Hit Robots 53 | 6 20 23 4 Core Hits 24 | 1 11 10 2 Critical Kills . | . . . . Critical Parts Destroyed 2 | 1 . 1 . Critical Strikes 2 | 1 . 1 . Destroy 2 | 1 . 1 . Melee Attacks . | . . . . Impact . | . . . . Slashing . | . . . . Piercing . | . . . . Sneak Attacks . | . . . . Combat Hostiles . | . . . . Follow-up Attacks . | . . . . Damage Inflicted 1057 | 80 542 348 87 Guns 555 | 80 234 232 9 Cannons 183 | . . 105 78 Explosions 308 | . 308 . . Melee . | . . . . Ramming 11 | . . 11 . Kinetic 555 | 80 234 232 9 Thermal 183 | . . 105 78 Explosive 308 | . 308 . . Electromagnetic . | . . . . Impact . | . . . . Slashing . | . . . . Piercing . | . . . . Highest Corruption . | . . . . Average Corruption . | . . . . Corruption Purged . | . . . . Corruption Blocked . | . . . . Overload Shots . | . . . . Overflow Damage 33 | . 18 15 . Projectiles 15 | . . 15 . Explosions 18 | . 18 . . Melee . | . . . . Knockbacks . | . . . . Impact . | . . . . Kinetic . | . . . . Secondary . | . . . . Self-Inflicted Damage 35 | . 34 1 . Shots 2 | . 2 . . Rammed 2 | . . 2 . Targets Rammed 4 | . . 4 . Kicked 2 | . . 2 . Crushed . | . . . . Highest Temperature 422 | . 35 422 10 Average Temperature 139 | . 13 197 6 Received Heat Transfer 234 | 12 96 81 45 Effects 1 | . . 1 . Matter Decay 1 | . . 1 . Siege Activations . | . . . . Martial Activations . | . . . . Shielding Activations . | . . . . Robots Disrupted . | . . . . Combat Hostiles . | . . . . Robots Corrupted . | . . . . Combat Hostiles . | . . . . Parts Fried . | . . . . Impact Corruptions . | . . . . Robots Melted . | . . . . Combat Hostiles . | . . . . Parts Melted 1 | . . 1 . Heat Transferred 333 | . . 222 111 Parts Sabotaged . | . . . . Parts Stolen . | . . . . Parts Stripped . | . . . . Power Chain Reactions . | . . . . Alert | -11 -10 -10 -10 ------- Run | Yrd Mat Min Sub Maximum Alert Level 1 | . 1 . . Low Security (%) 92 | 100 74 100 . Level 1 7 | . 25 . . Level 2 . | . . . . Level 3 . | . . . . Level 4 . | . . . . Level 5 . | . . . . High Security . | . . . . Max Security . | . . . . Peak Influence 245 | 20 245 77 . Initial 75 | . 6 75 . Average 53 | 3 129 24 . Influence Increases 558 | 20 343 175 20 Destroy 0b10 Robot/C 360 | 20 180 140 20 Destroy 0b10 Robot/NC 5 | . 5 . . Destroy Leader 62 | . 42 20 . Disable Machine 45 | . 45 . . Destroy Structure 41 | . 41 . . Lose Combat Pursuer 45 | . 30 15 . Influence Decreases 558 | 10 160 368 20 Entered New Map 122 | . 4 118 . Time Decay 396 | 10 146 220 20 Lost Part 40 | . 10 30 . Squads Dispatched 2 | . 2 . . Investigation 1 | . 1 . . Extermination . | . . . . Reinforcement 1 | . 1 . . Assault . | . . . . Garrison . | . . . . Intercept . | . . . . Searches Triggered . | . . . . Construction Impeded . | . . . . Haulers Reinforced . | . . . . Active Scanning Responses . | . . . . Cargo Convoy Interrupts . | . . . . Stealth | -11 -10 -10 -10 --------- Run | Yrd Mat Min Sub Distress Signals 1 | . 1 . . Communications Jammed . | . . . . Distress Signals . | . . . . Times Spotted 31 | 1 12 9 9 Peak Tracking Total 5 | 1 4 3 5 Tactical Retreats 2 | . 1 1 . Traps | -11 -10 -10 -10 ------- Run | Yrd Mat Min Sub Traps Triggered 3 | . 1 2 . Indirectly . | . . . . Trap Hack Attempts . | . . . . Triggered . | . . . . Disarmed . | . . . . Reprogrammed . | . . . . Reused . | . . . . Traps Extracted . | . . . . Installed . | . . . . Triggered . | . . . . Machines | -11 -10 -10 -10 ---------- Run | Yrd Mat Min Sub Machines Disabled 4 | . 3 1 . Max in Single Turn 2 | . 2 1 . Machines Repaired . | . . . . Machines Dismantled . | . . . . Machines Sabotaged . | . . . . Overloaded Fab Kills . | . . . . Hacking | -11 -10 -10 -10 --------- Run | Yrd Mat Min Sub Machines Accessed 1 | . . 1 . Terminals . | . . . . Fabricators . | . . . . Repair Stations . | . . . . Recycling Units . | . . . . Scanalyzers . | . . . . Garrison Access . | . . . . Total Hacks 1 | . . 1 . Successful 1 | . . 1 . Failed . | . . . . Catastrophic . | . . . . Database Lockouts . | . . . . Manual 1 | . . 1 . Terminals . | . . . . Fabricators . | . . . . Repair Stations . | . . . . Recycling Units . | . . . . Scanalyzers . | . . . . Garrison Access . | . . . . Terminal Hacks 1 | . . 1 . Open Door 1 | . . 1 . Fabricator Hacks . | . . . . Repair Station Hacks . | . . . . Recycling Unit Hacks . | . . . . Scanalyzer . | . . . . Garrison Access Hacks . | . . . . Unauthorized Hacks . | . . . . Terminals . | . . . . Fabricators . | . . . . Repair Stations . | . . . . Recycling Units . | . . . . Scanalyzers . | . . . . Garrison Access . | . . . . Data Cores Recovered . | . . . . Used . | . . . . Hacking Detections . | . . . . Full Trace Events . | . . . . Feedback Events . | . . . . Feedback Blocked . | . . . . Robot Schematics Acquired . | . . . . Robots Built . | . . . . Authchips . | . . . . Time . | . . . . Total Robot Build Rating . | . . . . Part Schematics Acquired . | . . . . Parts Built . | . . . . Authchips . | . . . . Time . | . . . . Total Part Build Rating . | . . . . Parts Repaired . | . . . . Time . | . . . . Parts Recycled . | . . . . Recycled Matter . | . . . . Retrieved Matter . | . . . . Retrieved Components . | . . . . Parts Scanalyzed . | . . . . Part Schematics Acquired . | . . . . Parts Damaged . | . . . . Bothacking | -11 -10 -10 -10 ------------ Run | Yrd Mat Min Sub Used RIF Installer . | . . . . Robots Hacked . | . . . . Non-combat . | . . . . Combat . | . . . . Robot Hacks Applied . | . . . . Relay Couplers Released . | . . . . Fabnet Peak Effective % . | . . . . Robots Rewired . | . . . . Allies Hacked . | . . . . Hacks Repelled . | . . . . Allies | -11 -10 -10 -10 -------- Run | Yrd Mat Min Sub Total Allies . | . . . . Largest Group . | . . . . Highest-Rated Group . | . . . . Highest-Rated Ally . | . . . . Total Orders . | . . . . Ally Attacks . | . . . . Total Damage . | . . . . Kills . | . . . . Allies Corrupted . | . . . . Allies Melted . | . . . . Intel | -11 -10 -10 -10 ------- Run | Yrd Mat Min Sub Active Infowar (turns) . | . . . . Robot Analysis Total . | . . . . Derelict Logs Recovered 3 | . . 2 1 Drone Launches . | . . . . Drone Recoveries . | . . . . Exploration | -11 -10 -10 -10 ------------- Run | Yrd Mat Min Sub Turns Passed 1407 | 136 375 737 159 Spaces Moved 783 | 104 230 389 60 Core 109 | 27 . 22 60 Treads 203 | . . 203 . Legs 367 | 77 230 60 . Wheels . | . . . . Hover . | . . . . Flight 104 | . . 104 . Fastest Speed 50 | 50 120 50 250 Average Speed 144 | 101 120 153 250 Slowest Speed 250 | 120 120 250 250 Overloaded Moves . | . . . . Propulsion Burnouts . | . . . . Robots Hopped . | . . . . Potential Cave-ins . | . . . . Cave-ins Triggered . | . . . . Exploration Rate (%) 28 | 7 36 65 6 Regions Visited 3 Branch Regions 2 Pre-discovered Areas 1 | . . . 1 Known Exits Taken . | . . . . Unknown Exits Taken 3 | 1 1 1 . Scrap Searched . | . . . . Spaces Dug . | . . . . Terrain Destroyed 37 | . 37 . . Melee . | . . . . Projectile 1 | . 1 . . AOE 36 | . 36 . . Terrain Rammed . | . . . . Walls Destroyed . | . . . . Machines Disabled . | . . . . Actions | -11 -10 -10 -10 --------- Run | Yrd Mat Min Sub Total 966 | 126 284 492 64 Wait 15 | 4 9 2 . Move 780 | 103 229 388 60 Hop . | . . . . Pick Up 40 | 10 5 25 . Fast Attach . | . . . . Attach 19 | 5 2 12 . Detach 1 | . . 1 . Swap 4 | . 3 1 . Drop 23 | . 4 19 . Fire 80 | 4 32 40 4 Melee . | . . . . Ram 1 | . . 1 . Kick 2 | . . 2 . Crush 1 | . . 1 . Escape Stasis . | . . . . Rewire . | . . . . Trap . | . . . . Miscellaneous . | . . . . Route ------- -11/Scrapyard -10/Materials -10/Mines (discovered 2 exits: [*Mat] / [*Sub]) -10/Subcaves History --------- Turn | Location | Event 2 | -11/Scrapyard | Met Revision 17 94 | -11/Scrapyard | Discovered new exit (range 8) 137 | -11/Scrapyard | Entered Materials 307 | -10/Materials | Build established: Mutant 490 | -10/Materials | Discovered new exit (range 6) 512 | -10/Materials | Entered Mines 533 | -10/Mines | Learned 2 Materials zone layouts 560 | -10/Mines | Discovered new exit (range 10) 725 | -10/Mines | Core integrity fell below 50% 911 | -10/Mines | Learned Materials emergency access door positions 1138 | -10/Mines | Met a Derelict who couldn't figure out how to use a Trap Extractor 1211 | -10/Mines | Discovered new exit (range 11) 1249 | -10/Mines | Entered Subcaves 1254 | -10/Subcaves | Learned location of Storage (-9) 1402 | -10/Subcaves | Core integrity fell below 20% 1405 | -10/Subcaves | Ambushed by swarm of Subdwellers 1408 | -10/Subcaves | Destroyed by RU-59U(R) with Subdweller Laser Last Messages --------------- Acquired 51 matter. Flight Unit destroyed. AQ-K1R(R) suffers critical hit (Destroy). AQ-K1R(R) destroyed. A mess of Twisted Machinery falls from the cavern ceiling. YR-3VC(R) comes tumbling into view. PU-A71(h): "The Subs are coming!" JN-OH2(R) suffers critical hit (Destroy). JN-OH2(R) destroyed. PU-A71(h) suffers critical hit (Destroy). PU-A71(h) destroyed. RU-59U(R) emerges from the Twisted Machinery. 1U-E96(R) emerges from the Twisted Machinery. QA-4Z7(R) emerges from the Twisted Machinery. XF-FVD(R) emerges from the Twisted Machinery. 09-NXV(R) emerges from the Twisted Machinery. Lgt. Assault Rifle destroyed. 1U-E96(R) destroyed. [Achievement: First Step to Greatness] Map ----- +----------------------------------------------------+ | ??????????# ##??????????????????????????????????? | | ??????????## ##??????????????????????????????????? | | ??????????# #??????????????????????????????????? | | ??????????## #??????????????????????????????????? | | ??????????# ##??????????????????????????????????? | | ??????????# #?#######??????????????????????????? | | ??????????## ### #??????????????????????????? | | ???????????# ## #??????????????????????????? | | ???????????# #??????????????????????????? | | ???????????# #??????????????????????????? | | ??????????# ## # #??????????????????????????? | | ??????????##?## ####?####?????????????????????? | | ?????????????# ##### ##????????????????????? | | ?????????????#### # ##?????? ????????????? | | ????????????????# #????? #??????????? | | ????????????????# #????? ??????????? | | ????????????????##### ##???? ???????????? | | ????????????????????## #???? ????????????? | | ???????????????????## ##?? ?????????????? | | ??????????????????## ## #?# #??????????????? | | ??????????????????# #?# ## #??????????????? | | ??????????????????### ### #??????????????? | | ???????????????????## ## #???????????????? | | ????????????????#### #???????????????? | | ????????????????# ###?????????????? | | ????????????????# @ #???????????? | | ????????????????## !=!## #????????????? | | ?????????????????##### &%R;# ##????????????? | | ?????????????????????# RR""#? ??????????????? | | ?????????????????????####! R "##?????????????????? | | ????????????????????????#%= R##??????????????????? | | ???????????????????????? #???????????????????? | | ???????????????????????? ###???????????????????? | | ???????????????????????# ##?????????????????????? | | ??????????????????????? #??????????????????????? | | ??????????????????????? ??????????????????????? | | ?????????????????????? ??????????????????????? | | ?????????????????????? &* ??????????????????????? | | ????????????????????? %& ??????????????????????? | | ?????????????????????? &% ??????????????????????? | | ???????????????????????? = ??????????????????????? | | ?????????????????????????????????????????????????? | | ?????????????????????????????????????????????????? | | ?????????????????????????????????????????????????? | | ?????????????????????????????????????????????????? | | ?????????????????????????????????????????????????? | | ?????????????????????????????????????????????????? | | ?????????????????????????????????????????????????? | | ?????????????????????????????????????????????????? | | ?????????????????????????????????????????????????? | +----------------------------------------------------+ Best States ------------- Heat Dissipation 25 Energy Generation 10 Energy Capacity 250 Matter Stores 300 Matter Capacity 300 Sight Range 16 Terrain Scan Density 10 Armor Coverage 150 Evasion (%) 55 Targeting Accuracy 5 Recoil Reduction 1 Particle Charging 15 Item Schematics ----------------- None Robot Schematics ------------------ None Fabricated ------------ Nothing Repaired ---------- Nothing Alien Tech Used ----------------- None Achievements -------------- First Step to Greatness Let's See Who's Tougher Storm Trooper Uninvited Guest Challenges ------------ None Game ------ Seed MultitargetingMobileTrap Manual? 0 Play Time 00:16:00 Cumulative 0.2 hours Start 2025.08.01 @ 21:35:25 End 2025.08.01 @ 21:51:03 Sessions 1 Manual Loads 0 Difficulty Rogue Special Mode None Game No. 1 Rogue 1 Adventurer 0 Explorer 0 Win Type - Total 0 Types 0/0/0/0/0/0/0/0/0/0 Lore% 0 Gallery% 1 Achievement% 1 Wizard Run 0 Options --------- Layout 1 ASCII 0 Keyboard 0 Movement Arrows Keybinds 0 Fullscreen 1 Font 24/Smallcaps Map View 50x35 Zoom Use 0% Tactical HUD 0 Map Filters NONE Filters NONE Steam 1 RUN: 1a69cc2e-3e20-4500-bd2d-913206f3d489